[Event "*** Titled Tuesday Blitz"]
[Site "Chess.com"]
[Date "2021.02.09"]
[Round "4"]
[White "AurumO"]
[Black "kubal123"]
[Result "0-1"]
[WhiteElo "1892"]
[BlackElo "2203"]
[TimeControl "180+1"]
[EndTime "10:39:53 PST"]
[Termination "kubal123 won on time"]

1. e4 {[%clk 0:03:00.9]} 1... c5 {[%clk 0:02:59.7]} 2. c3 {[%clk 0:03:00.3]}
2... d5 {[%clk 0:02:59.3]} 3. exd5 {[%clk 0:03:01.2]} 3... Qxd5 {[%clk
0:02:59.1]} 4. d4 {[%clk 0:03:01.1]} 4... e6 {[%clk 0:02:58]} 5. Nf3 {[%clk
0:02:59.6]} 5... Nf6 {[%clk 0:02:58.4]} 6. Na3 {[%clk 0:02:34.2]} 6... Nc6
{[%clk 0:02:53.7]} 7. Nb5 {[%clk 0:02:19.4]} 7... Qd8 {[%clk 0:02:53]} 8. dxc5
{[%clk 0:02:19.2]} 8... Bxc5 {[%clk 0:02:51.9]} 9. Qxd8+ {[%clk 0:02:15.4]} 9...
Kxd8 {[%clk 0:02:52.8]} 10. Bg5 {[%clk 0:02:15.1]} 10... a6 {[%clk 0:02:24.5]}
11. O-O-O+ {[%clk 0:02:12.8]} 11... Ke7 {[%clk 0:02:24.8]} 12. Nbd4 {[%clk
0:02:00.7]} 12... Bd7 {[%clk 0:02:23.2]} 13. Bc4 {[%clk 0:01:43.3]} 13... Nxd4
{[%clk 0:01:44.3]} 14. Nxd4 {[%clk 0:01:41.1]} 14... Rac8 {[%clk 0:01:29.3]} 15.
Bb3 {[%clk 0:01:38.2]} 15... h6 {[%clk 0:01:17.1]} 16. Bh4 {[%clk 0:01:29.7]}
16... g5 {[%clk 0:01:12.2]} 17. Bg3 {[%clk 0:01:29.6]} 17... Ne4 {[%clk
0:01:08.2]} 18. Rhe1 {[%clk 0:01:22.2]} 18... Nxg3 {[%clk 0:01:07.6]} 19. hxg3
{[%clk 0:01:19.2]} 19... Kf6 {[%clk 0:00:39.8]} 20. f4 {[%clk 0:00:59.3]} 20...
gxf4 {[%clk 0:00:37.7]} 21. gxf4 {[%clk 0:00:59]} 21... Rhg8 {[%clk 0:00:33.3]}
22. Rd2 {[%clk 0:00:54]} 22... Bxd4 {[%clk 0:00:28.6]} 23. Rxd4 {[%clk
0:00:54.1]} 23... Bc6 {[%clk 0:00:29.1]} 24. Rh1 {[%clk 0:00:45.5]} 24... Rg6
{[%clk 0:00:22.6]} 25. Bc2 {[%clk 0:00:41.2]} 25... Bxg2 {[%clk 0:00:14.9]} 26.
Rg1 {[%clk 0:00:25.5]} 26... Rg7 {[%clk 0:00:14.7]} 27. Rd2 {[%clk 0:00:20.6]}
27... Bc6 {[%clk 0:00:13.9]} 28. Rxg7 {[%clk 0:00:19.8]} 28... Kxg7 {[%clk
0:00:14.8]} 29. Rh2 {[%clk 0:00:20]} 29... Rd8 {[%clk 0:00:13.8]} 30. a3 {[%clk
0:00:15.5]} 30... Rh8 {[%clk 0:00:14]} 31. Bd3 {[%clk 0:00:14.3]} 31... h5
{[%clk 0:00:14]} 32. Kc2 {[%clk 0:00:14.5]} 32... h4 {[%clk 0:00:13.9]} 33. Kd2
{[%clk 0:00:14.6]} 33... Kf6 {[%clk 0:00:13.3]} 34. Ke3 {[%clk 0:00:14.9]} 34...
h3 {[%clk 0:00:11.8]} 35. Bf1 {[%clk 0:00:13.6]} 35... Rd8 {[%clk 0:00:07.2]}
36. Rxh3 {[%clk 0:00:10.6]} 36... Rd1 {[%clk 0:00:07.6]} 37. Be2 {[%clk
0:00:09.5]} 37... Rb1 {[%clk 0:00:08]} 38. b4 {[%clk 0:00:05.3]} 38... Ra1
{[%clk 0:00:08.4]} 39. Kd4 {[%clk 0:00:02.9]} 39... Rxa3 {[%clk 0:00:07.8]} 40.
Rh6+ {[%clk 0:00:03.2]} 40... Ke7 {[%clk 0:00:06.8]} 41. Bc4 {[%clk 0:00:03]}
41... Ra2 {[%clk 0:00:06.3]} 42. Rh7 {[%clk 0:00:02.7]} 42... Rd2+ {[%clk
0:00:05.5]} 43. Ke3 {[%clk 0:00:02.6]} 43... Rb2 {[%clk 0:00:05.9]} 44. f5
{[%clk 0:00:01.6]} 44... Kf6 {[%clk 0:00:04.5]} 0-1

[Event "*** Titled Tuesday Blitz"]
[Site "Chess.com"]
[Date "2021.02.09"]
[Round "4"]
[White "ZarinaShafigullina"]
[Black "PawnEatingZombie"]
[Result "1-0"]
[WhiteElo "2399"]
[BlackElo "2116"]
[TimeControl "180+1"]
[EndTime "10:39:55 PST"]
[Termination "ZarinaShafigullina won by resignation"]

1. d4 {[%clk 0:03:00.9]} 1... d5 {[%clk 0:02:59.4]} 2. Nf3 {[%clk 0:03:01.8]}
2... e6 {[%clk 0:02:59.2]} 3. g3 {[%clk 0:03:02.2]} 3... b5 {[%clk 0:02:56.6]}
4. Bg2 {[%clk 0:03:01.3]} 4... Nf6 {[%clk 0:02:56.3]} 5. O-O {[%clk 0:03:00.3]}
5... Bb7 {[%clk 0:02:56.1]} 6. Qd3 {[%clk 0:02:59.8]} 6... a6 {[%clk 0:02:47.1]}
7. a4 {[%clk 0:02:59]} 7... b4 {[%clk 0:02:46.6]} 8. Nbd2 {[%clk 0:02:50.5]}
8... Nbd7 {[%clk 0:02:46.3]} 9. c4 {[%clk 0:02:47.6]} 9... c5 {[%clk 0:02:44.3]}
10. Rd1 {[%clk 0:02:33.7]} 10... cxd4 {[%clk 0:02:33.8]} 11. Qxd4 {[%clk
0:02:31.3]} 11... Bc5 {[%clk 0:02:28.4]} 12. Qd3 {[%clk 0:02:23.4]} 12... O-O
{[%clk 0:02:22.7]} 13. Nb3 {[%clk 0:02:14.8]} 13... Be7 {[%clk 0:02:20.7]} 14.
Bf4 {[%clk 0:02:09.7]} 14... dxc4 {[%clk 0:02:04.3]} 15. Qxc4 {[%clk 0:02:09.2]}
15... Nd5 {[%clk 0:02:04.2]} 16. e4 {[%clk 0:02:02.3]} 16... Nxf4 {[%clk
0:01:50]} 17. gxf4 {[%clk 0:02:01.8]} 17... Rc8 {[%clk 0:01:33.3]} 18. Qe2
{[%clk 0:01:58.5]} 18... Qc7 {[%clk 0:01:19.7]} 19. e5 {[%clk 0:01:33.9]} 19...
Nc5 {[%clk 0:01:12.7]} 20. Rac1 {[%clk 0:01:30.7]} 20... Qb8 {[%clk 0:00:44.1]}
21. Nxc5 {[%clk 0:01:24.7]} 21... Bxc5 {[%clk 0:00:43.7]} 22. Ng5 {[%clk
0:01:08.9]} 22... Bxg2 {[%clk 0:00:41.3]} 23. Kxg2 {[%clk 0:01:07.8]} 23... Qb7+
{[%clk 0:00:33.3]} 24. Qe4 {[%clk 0:01:07]} 24... Qxe4+ {[%clk 0:00:26.8]} 25.
Nxe4 {[%clk 0:01:06.4]} 25... Be7 {[%clk 0:00:26.7]} 26. Nd6 {[%clk 0:00:41.6]}
26... Rxc1 {[%clk 0:00:25.5]} 27. Rxc1 {[%clk 0:00:40.9]} 27... g6 {[%clk
0:00:14]} 28. Rc6 {[%clk 0:00:39.4]} 28... a5 {[%clk 0:00:13.4]} 29. Ra6 {[%clk
0:00:37.8]} 29... Bxd6 {[%clk 0:00:10.7]} 30. exd6 {[%clk 0:00:37.3]} 30... Rd8
{[%clk 0:00:10.6]} 31. Kf3 {[%clk 0:00:34.5]} 31... Kg7 {[%clk 0:00:09.4]} 32.
Ke4 {[%clk 0:00:33.2]} 32... Kf6 {[%clk 0:00:09.8]} 33. Kd4 {[%clk 0:00:32.2]}
33... Kf5 {[%clk 0:00:08.2]} 34. Kc5 {[%clk 0:00:31.8]} 34... Kxf4 {[%clk
0:00:06.9]} 35. Ra7 {[%clk 0:00:31.4]} 35... e5 {[%clk 0:00:06.2]} 36. Rxf7+
{[%clk 0:00:30.8]} 36... Ke4 {[%clk 0:00:06.7]} 37. d7 {[%clk 0:00:29]} 37...
Kd3 {[%clk 0:00:05.6]} 38. Kd6 {[%clk 0:00:27.8]} 38... Kc2 {[%clk 0:00:05.6]}
39. Kc7 {[%clk 0:00:27.5]} 39... Rxd7+ {[%clk 0:00:05.6]} 40. Kxd7 {[%clk
0:00:27.2]} 40... Kxb2 {[%clk 0:00:06.5]} 41. Rxh7 {[%clk 0:00:26.7]} 41... b3
{[%clk 0:00:06.8]} 42. Ke6 {[%clk 0:00:26.3]} 42... Ka2 {[%clk 0:00:05.5]} 43.
Kxe5 {[%clk 0:00:25.3]} 43... b2 {[%clk 0:00:06.4]} 44. Rb7 {[%clk 0:00:25]}
44... b1=Q {[%clk 0:00:07.3]} 45. Rxb1 {[%clk 0:00:24.5]} 45... Kxb1 {[%clk
0:00:08.2]} 46. Kf6 {[%clk 0:00:24.7]} 46... Kb2 {[%clk 0:00:09.1]} 47. Kxg6
{[%clk 0:00:24.5]} 47... Kb3 {[%clk 0:00:10]} 48. h4 {[%clk 0:00:20.2]} 48...
Kxa4 {[%clk 0:00:10.9]} 49. h5 {[%clk 0:00:20.5]} 49... Kb3 {[%clk 0:00:08.8]}
50. h6 {[%clk 0:00:20.7]} 50... a4 {[%clk 0:00:09.7]} 51. h7 {[%clk 0:00:20.9]}
51... a3 {[%clk 0:00:10.6]} 52. h8=Q {[%clk 0:00:21.3]} 52... a2 {[%clk
0:00:11.5]} 53. Qa1 {[%clk 0:00:21]} 1-0

[Event "*** Titled Tuesday Blitz"]
[Site "Chess.com"]
[Date "2021.02.09"]
[Round "4"]
[White "Alexander_Zubov"]
[Black "12teen"]
[Result "0-1"]
[WhiteElo "2974"]
[BlackElo "2835"]
[TimeControl "180+1"]
[EndTime "10:39:56 PST"]
[Termination "12teen won on time"]

1. d4 {[%clk 0:03:00.9]} 1... Nf6 {[%clk 0:02:58.4]} 2. c4 {[%clk 0:03:00.8]}
2... e6 {[%clk 0:02:53.4]} 3. Nf3 {[%clk 0:03:00.2]} 3... b6 {[%clk 0:02:52.6]}
4. a3 {[%clk 0:02:58.6]} 4... Bb7 {[%clk 0:02:52.6]} 5. Nc3 {[%clk 0:02:58.6]}
5... d5 {[%clk 0:02:50.5]} 6. Bg5 {[%clk 0:02:58.4]} 6... Be7 {[%clk 0:02:47.4]}
7. e3 {[%clk 0:02:58.5]} 7... dxc4 {[%clk 0:02:47.6]} 8. Bxc4 {[%clk 0:02:57.8]}
8... Nbd7 {[%clk 0:02:48.3]} 9. O-O {[%clk 0:02:48.4]} 9... a6 {[%clk
0:02:47.5]} 10. Qe2 {[%clk 0:02:43.1]} 10... b5 {[%clk 0:02:45]} 11. Ba2 {[%clk
0:02:39.4]} 11... c5 {[%clk 0:02:45.3]} 12. Rfd1 {[%clk 0:02:36.4]} 12... c4
{[%clk 0:02:44.1]} 13. e4 {[%clk 0:02:25.3]} 13... O-O {[%clk 0:02:43.2]} 14.
Bf4 {[%clk 0:02:21.1]} 14... Rc8 {[%clk 0:02:39.2]} 15. d5 {[%clk 0:02:18]}
15... exd5 {[%clk 0:02:36.2]} 16. e5 {[%clk 0:02:18.1]} 16... Ne4 {[%clk
0:02:11.9]} 17. Nxd5 {[%clk 0:02:16.9]} 17... Nec5 {[%clk 0:02:12]} 18. Bb1
{[%clk 0:02:10.5]} 18... Bxd5 {[%clk 0:01:41.7]} 19. Rxd5 {[%clk 0:02:09.6]}
19... Ne6 {[%clk 0:01:34.7]} 20. Qc2 {[%clk 0:01:42.7]} 20... g6 {[%clk
0:01:29.4]} 21. Bh6 {[%clk 0:01:42.5]} 21... Re8 {[%clk 0:01:29.7]} 22. Qd2
{[%clk 0:01:41.8]} 22... Rc7 {[%clk 0:01:25.6]} 23. Bc2 {[%clk 0:01:27.9]} 23...
Qc8 {[%clk 0:01:23.8]} 24. Qc3 {[%clk 0:01:23.4]} 24... Nb6 {[%clk 0:01:20]} 25.
Rd6 {[%clk 0:01:18.4]} 25... Bxd6 {[%clk 0:01:02]} 26. exd6 {[%clk 0:01:18.4]}
26... Rc5 {[%clk 0:00:44.1]} 27. Ne5 {[%clk 0:00:54.1]} 27... Nd7 {[%clk
0:00:15.4]} 28. Ng4 {[%clk 0:00:47.5]} 28... f5 {[%clk 0:00:07.8]} 29. Re1
{[%clk 0:00:28.3]} 29... Kf7 {[%clk 0:00:08.2]} 30. Ne3 {[%clk 0:00:15]} 30...
Re5 {[%clk 0:00:07.7]} 31. Rd1 {[%clk 0:00:12.9]} 31... Qc5 {[%clk 0:00:05.8]}
32. g3 {[%clk 0:00:11.5]} 32... f4 {[%clk 0:00:05.1]} 33. Ng4 {[%clk 0:00:10.7]}
33... Rh5 {[%clk 0:00:04]} 34. Re1 {[%clk 0:00:09.6]} 34... fxg3 {[%clk
0:00:02.9]} 35. hxg3 {[%clk 0:00:08.4]} 35... Qxd6 {[%clk 0:00:02.8]} 36. Re3
{[%clk 0:00:05.9]} 36... Rd5 {[%clk 0:00:03.3]} 37. Rf3+ {[%clk 0:00:06]} 37...
Ke7 {[%clk 0:00:03.3]} 38. Ne3 {[%clk 0:00:03.3]} 38... Nd4 {[%clk 0:00:03.5]}
39. Nxd5+ {[%clk 0:00:03.1]} 39... Qxd5 {[%clk 0:00:04.4]} 40. Re3+ {[%clk
0:00:02.3]} 40... Kd8 {[%clk 0:00:04.9]} 41. Bd1 {[%clk 0:00:02.4]} 41... Rxe3
{[%clk 0:00:04.8]} 42. Qxe3 {[%clk 0:00:03.3]} 42... Ne6 {[%clk 0:00:05.1]} 43.
Bf4 {[%clk 0:00:03.2]} 43... Qxd1+ {[%clk 0:00:04.7]} 44. Kh2 {[%clk 0:00:03.7]}
44... Nxf4 {[%clk 0:00:05.3]} 45. Qxf4 {[%clk 0:00:03.8]} 45... Qd5 {[%clk
0:00:05.7]} 46. Qg4 {[%clk 0:00:02.7]} 46... Qh5+ {[%clk 0:00:05.8]} 47. Qxh5
{[%clk 0:00:02.5]} 47... gxh5 {[%clk 0:00:06.7]} 0-1

[Event "*** Titled Tuesday Blitz"]
[Site "Chess.com"]
[Date "2021.02.09"]
[Round "4"]
[White "Sharpchess22"]
[Black "EugeneRougon"]
[Result "1-0"]
[WhiteElo "2721"]
[BlackElo "2705"]
[TimeControl "180+1"]
[EndTime "10:39:57 PST"]
[Termination "Sharpchess22 won on time"]

1. c4 {[%clk 0:03:00.9]} 1... c6 {[%clk 0:02:55]} 2. Nf3 {[%clk 0:02:58.7]} 2...
d5 {[%clk 0:02:55.2]} 3. e3 {[%clk 0:02:55.4]} 3... Nf6 {[%clk 0:02:54.5]} 4.
Nc3 {[%clk 0:02:55.3]} 4... e6 {[%clk 0:02:53.6]} 5. b3 {[%clk 0:02:54.4]} 5...
Bd6 {[%clk 0:02:52.2]} 6. Bb2 {[%clk 0:02:53.1]} 6... O-O {[%clk 0:02:52.2]} 7.
Be2 {[%clk 0:02:51.8]} 7... e5 {[%clk 0:02:50.5]} 8. cxd5 {[%clk 0:02:51.4]}
8... cxd5 {[%clk 0:02:51.4]} 9. Nb5 {[%clk 0:02:50.9]} 9... Nc6 {[%clk 0:02:52]}
10. Nxd6 {[%clk 0:02:49.9]} 10... Qxd6 {[%clk 0:02:52.9]} 11. d4 {[%clk
0:02:38.5]} 11... Qb4+ {[%clk 0:02:14.2]} 12. Qd2 {[%clk 0:02:37.1]} 12... Qxd2+
{[%clk 0:02:14.1]} 13. Kxd2 {[%clk 0:02:37.5]} 13... Ne4+ {[%clk 0:02:05.4]} 14.
Ke1 {[%clk 0:02:37.5]} 14... Nb4 {[%clk 0:01:56.9]} 15. Kf1 {[%clk 0:02:36.6]}
15... exd4 {[%clk 0:01:17.1]} 16. Nxd4 {[%clk 0:02:34.1]} 16... Bd7 {[%clk
0:01:07.4]} 17. f3 {[%clk 0:02:29.2]} 17... Nd6 {[%clk 0:01:07.2]} 18. Ba3
{[%clk 0:02:18.4]} 18... a5 {[%clk 0:01:04.3]} 19. Kf2 {[%clk 0:02:18.1]} 19...
Rfc8 {[%clk 0:01:00.6]} 20. Rad1 {[%clk 0:02:12.1]} 20... Nf5 {[%clk 0:00:49.5]}
21. Nxf5 {[%clk 0:01:23.6]} 21... Bxf5 {[%clk 0:00:49.3]} 22. Rd2 {[%clk
0:01:23.4]} 22... Rc2 {[%clk 0:00:31.8]} 23. Rxc2 {[%clk 0:01:21]} 23... Bxc2
{[%clk 0:00:26.1]} 24. Rc1 {[%clk 0:01:15.6]} 24... Nd3+ {[%clk 0:00:25.9]} 25.
Bxd3 {[%clk 0:01:15.5]} 25... Bxd3 {[%clk 0:00:26.8]} 26. Rc7 {[%clk 0:01:08.4]}
26... Bb1 {[%clk 0:00:25.8]} 27. Rxb7 {[%clk 0:01:08.5]} 27... Bxa2 {[%clk
0:00:25.7]} 28. Bb2 {[%clk 0:01:04.2]} 28... f6 {[%clk 0:00:24.3]} 29. Bd4
{[%clk 0:01:03.3]} 29... a4 {[%clk 0:00:19.2]} 30. bxa4 {[%clk 0:01:03.6]} 30...
Rxa4 {[%clk 0:00:20.1]} 31. g4 {[%clk 0:01:01.5]} 31... h6 {[%clk 0:00:18.2]}
32. h4 {[%clk 0:01:00.9]} 32... Bc4 {[%clk 0:00:13]} 33. g5 {[%clk 0:01:00.7]}
33... hxg5 {[%clk 0:00:13.9]} 34. hxg5 {[%clk 0:01:01.1]} 34... fxg5 {[%clk
0:00:13.2]} 35. Rxg7+ {[%clk 0:01:01.1]} 35... Kf8 {[%clk 0:00:13.8]} 36. Rxg5
{[%clk 0:01:00.7]} 36... Kf7 {[%clk 0:00:14.4]} 37. Rg7+ {[%clk 0:01:01]} 37...
Ke6 {[%clk 0:00:14.6]} 38. Kg3 {[%clk 0:01:00.6]} 38... Ra8 {[%clk 0:00:13.4]}
39. Rg6+ {[%clk 0:00:59.2]} 39... Kf7 {[%clk 0:00:12.5]} 40. Rf6+ {[%clk
0:00:58.9]} 40... Ke7 {[%clk 0:00:13.1]} 41. Rh6 {[%clk 0:00:59]} 41... Rg8+
{[%clk 0:00:13.2]} 42. Kf2 {[%clk 0:00:59.3]} 42... Ra8 {[%clk 0:00:12.7]} 43.
Bc5+ {[%clk 0:00:58.3]} 43... Kf7 {[%clk 0:00:12.6]} 44. Kg3 {[%clk 0:00:58.7]}
44... Rg8+ {[%clk 0:00:11.9]} 45. Kf4 {[%clk 0:00:58.6]} 45... Rg6 {[%clk
0:00:12.8]} 46. Rh7+ {[%clk 0:00:57.7]} 46... Ke6 {[%clk 0:00:13.3]} 47. Re7+
{[%clk 0:00:55.6]} 47... Kf6 {[%clk 0:00:13.5]} 48. Rb7 {[%clk 0:00:54.3]} 48...
Ke6 {[%clk 0:00:13.4]} 49. Bd4 {[%clk 0:00:54.6]} 49... Rg2 {[%clk 0:00:12.9]}
50. Rb6+ {[%clk 0:00:54.1]} 50... Kd7 {[%clk 0:00:13.1]} 51. Kf5 {[%clk
0:00:53.1]} 51... Rf2 {[%clk 0:00:11.7]} 52. f4 {[%clk 0:00:53.2]} 52... Bd3+
{[%clk 0:00:11.7]} 53. Ke5 {[%clk 0:00:53.3]} 53... Be4 {[%clk 0:00:12.6]} 54.
Rb7+ {[%clk 0:00:52]} 54... Kc6 {[%clk 0:00:12.9]} 55. Rf7 {[%clk 0:00:52.1]}
55... Kb5 {[%clk 0:00:11.4]} 56. f5 {[%clk 0:00:52.1]} 56... Kc4 {[%clk
0:00:11.9]} 57. f6 {[%clk 0:00:51.8]} 57... Kd3 {[%clk 0:00:12.3]} 58. Rg7
{[%clk 0:00:49.2]} 58... Rf3 {[%clk 0:00:11.6]} 59. f7 {[%clk 0:00:48.5]} 59...
Kc4 {[%clk 0:00:11]} 60. Ke6 {[%clk 0:00:47.5]} 60... Bf5+ {[%clk 0:00:10.8]}
61. Ke7 {[%clk 0:00:47.5]} 1-0

[Event "*** Titled Tuesday Blitz"]
[Site "Chess.com"]
[Date "2021.02.09"]
[Round "4"]
[White "paladin_ll"]
[Black "Fischerev7"]
[Result "1-0"]
[WhiteElo "2160"]
[BlackElo "2383"]
[TimeControl "180+1"]
[EndTime "10:39:57 PST"]
[Termination "paladin_ll won by resignation"]

1. Nf3 {[%clk 0:03:00.6]} 1... Nf6 {[%clk 0:02:55.7]} 2. c4 {[%clk 0:02:59.3]}
2... g6 {[%clk 0:02:54.5]} 3. Nc3 {[%clk 0:02:59.3]} 3... Bg7 {[%clk 0:02:54.9]}
4. g3 {[%clk 0:02:59.2]} 4... O-O {[%clk 0:02:54.4]} 5. Bg2 {[%clk 0:02:59.4]}
5... c5 {[%clk 0:02:55]} 6. O-O {[%clk 0:02:59.6]} 6... Nc6 {[%clk 0:02:55.6]}
7. d4 {[%clk 0:02:59.7]} 7... cxd4 {[%clk 0:02:52.9]} 8. Nxd4 {[%clk 0:03:00.6]}
8... e5 {[%clk 0:02:45.9]} 9. Nc2 {[%clk 0:02:58.9]} 9... d6 {[%clk 0:02:43.2]}
10. Bg5 {[%clk 0:02:58.3]} 10... h6 {[%clk 0:02:40.7]} 11. Bxf6 {[%clk
0:02:58.2]} 11... Bxf6 {[%clk 0:02:41.6]} 12. Ne3 {[%clk 0:02:56.4]} 12... Be6
{[%clk 0:02:40.1]} 13. Rc1 {[%clk 0:02:42.8]} 13... Qb6 {[%clk 0:02:36.9]} 14.
Ned5 {[%clk 0:02:35.3]} 14... Qd8 {[%clk 0:02:24.6]} 15. b3 {[%clk 0:02:31.5]}
15... Bg7 {[%clk 0:02:24.1]} 16. e3 {[%clk 0:02:23.3]} 16... Kh7 {[%clk
0:02:23.3]} 17. Qd2 {[%clk 0:02:19.2]} 17... Qa5 {[%clk 0:02:18.4]} 18. Rfd1
{[%clk 0:02:12.5]} 18... Rad8 {[%clk 0:02:17.6]} 19. Ne4 {[%clk 0:02:03.9]}
19... Qxd2 {[%clk 0:02:08.4]} 20. Rxd2 {[%clk 0:02:02.6]} 20... f5 {[%clk
0:02:08.2]} 21. Nec3 {[%clk 0:01:59.8]} 21... e4 {[%clk 0:02:07.5]} 22. Rcd1
{[%clk 0:01:51.8]} 22... g5 {[%clk 0:01:59.8]} 23. Nc7 {[%clk 0:01:40]} 23...
Bf7 {[%clk 0:01:40.1]} 24. N3b5 {[%clk 0:01:28.1]} 24... Be5 {[%clk 0:01:04.4]}
25. g4 {[%clk 0:01:25.3]} 25... Rd7 {[%clk 0:00:37.7]} 26. Nd5 {[%clk 0:01:06]}
26... Bxd5 {[%clk 0:00:32.5]} 27. Rxd5 {[%clk 0:00:59.7]} 27... a6 {[%clk
0:00:31.4]} 28. Nxd6 {[%clk 0:00:56.6]} 28... Bxd6 {[%clk 0:00:28.5]} 29. Rxd6
{[%clk 0:00:55.6]} 29... Rxd6 {[%clk 0:00:28.6]} 30. Rxd6 {[%clk 0:00:56.5]}
30... fxg4 {[%clk 0:00:18.5]} 31. Bxe4+ {[%clk 0:00:54.9]} 31... Kg7 {[%clk
0:00:18.9]} 32. Bxc6 {[%clk 0:00:53.7]} 32... bxc6 {[%clk 0:00:18.7]} 33. Rxc6
{[%clk 0:00:54.6]} 33... a5 {[%clk 0:00:12.4]} 34. Rc5 {[%clk 0:00:49.4]} 34...
Ra8 {[%clk 0:00:11]} 35. Rb5 {[%clk 0:00:45.6]} 35... Kg6 {[%clk 0:00:10.1]} 36.
Kg2 {[%clk 0:00:45.3]} 36... h5 {[%clk 0:00:09.6]} 37. c5 {[%clk 0:00:43.3]}
37... h4 {[%clk 0:00:08.6]} 38. h3 {[%clk 0:00:43.2]} 38... gxh3+ {[%clk
0:00:07.2]} 39. Kxh3 {[%clk 0:00:44]} 39... a4 {[%clk 0:00:06.8]} 40. b4 {[%clk
0:00:43.4]} 40... Kh5 {[%clk 0:00:04.5]} 41. c6 {[%clk 0:00:42]} 41... Rf8
{[%clk 0:00:03.4]} 42. Kg2 {[%clk 0:00:38.7]} 42... Kg4 {[%clk 0:00:02.3]} 43.
c7 {[%clk 0:00:37.2]} 43... h3+ {[%clk 0:00:02.8]} 44. Kg1 {[%clk 0:00:34.6]}
44... Rc8 {[%clk 0:00:02.9]} 45. Rc5 {[%clk 0:00:32.6]} 45... a3 {[%clk
0:00:03.4]} 46. b5 {[%clk 0:00:32.3]} 46... Kf3 {[%clk 0:00:02.4]} 47. b6 {[%clk
0:00:29.5]} 47... g4 {[%clk 0:00:02.7]} 48. b7 {[%clk 0:00:28]} 48... Rh8 {[%clk
0:00:03]} 1-0

[Event "*** Titled Tuesday Blitz"]
[Site "Chess.com"]
[Date "2021.02.09"]
[Round "4"]
[White "MartinMatthiesen"]
[Black "DenishevM"]
[Result "0-1"]
[WhiteElo "2388"]
[BlackElo "2597"]
[TimeControl "180+1"]
[EndTime "10:40:02 PST"]
[Termination "DenishevM won on time"]

1. d4 {[%clk 0:03:00.9]} 1... Nf6 {[%clk 0:02:59.5]} 2. c4 {[%clk 0:03:00.1]}
2... g6 {[%clk 0:02:59.5]} 3. Nc3 {[%clk 0:02:59.7]} 3... Bg7 {[%clk 0:03:00.1]}
4. e4 {[%clk 0:02:59.9]} 4... O-O {[%clk 0:03:01]} 5. Nf3 {[%clk 0:03:00]} 5...
d6 {[%clk 0:03:01.6]} 6. Be2 {[%clk 0:03:00.2]} 6... Bg4 {[%clk 0:03:01.2]} 7.
Be3 {[%clk 0:02:59.4]} 7... Nc6 {[%clk 0:02:58.9]} 8. Ng1 {[%clk 0:02:53.6]}
8... Bxe2 {[%clk 0:02:58.5]} 9. Ngxe2 {[%clk 0:02:54.5]} 9... e5 {[%clk
0:02:59.3]} 10. d5 {[%clk 0:02:53.8]} 10... Ne7 {[%clk 0:02:59]} 11. f3 {[%clk
0:02:53.5]} 11... Nd7 {[%clk 0:02:57.6]} 12. O-O {[%clk 0:02:50.4]} 12... f5
{[%clk 0:02:57.7]} 13. b4 {[%clk 0:02:47.8]} 13... Nf6 {[%clk 0:02:48]} 14. Rc1
{[%clk 0:02:38.1]} 14... a5 {[%clk 0:02:42.8]} 15. a3 {[%clk 0:02:37.3]} 15...
Nh5 {[%clk 0:02:34.2]} 16. c5 {[%clk 0:02:32.7]} 16... axb4 {[%clk 0:02:32.1]}
17. axb4 {[%clk 0:02:32.3]} 17... Ra3 {[%clk 0:02:18.8]} 18. Qd2 {[%clk
0:02:31.2]} 18... Qd7 {[%clk 0:01:27.1]} 19. c6 {[%clk 0:02:15.5]} 19... bxc6
{[%clk 0:01:28]} 20. dxc6 {[%clk 0:02:15.4]} 20... Nxc6 {[%clk 0:00:31.3]} 21.
Nb5 {[%clk 0:01:51.8]} 21... Rxe3 {[%clk 0:00:18.8]} 22. Qxe3 {[%clk 0:01:51]}
22... Nf4 {[%clk 0:00:14.6]} 23. Qb3+ {[%clk 0:01:43.9]} 23... Kh8 {[%clk
0:00:13.9]} 24. Nxf4 {[%clk 0:01:22.4]} 24... exf4 {[%clk 0:00:13.9]} 25. Qc4
{[%clk 0:01:22.5]} 25... Ne5 {[%clk 0:00:10.5]} 26. Qe2 {[%clk 0:01:14]} 26...
fxe4 {[%clk 0:00:10.3]} 27. fxe4 {[%clk 0:01:13.1]} 27... f3 {[%clk 0:00:09.6]}
28. gxf3 {[%clk 0:01:12.3]} 28... Bh6 {[%clk 0:00:09.5]} 29. Rxc7 {[%clk
0:01:09.2]} 29... Qd8 {[%clk 0:00:03.9]} 30. Kh1 {[%clk 0:00:47.6]} 30... Qh4
{[%clk 0:00:03.2]} 31. Nxd6 {[%clk 0:00:41.5]} 31... Bf4 {[%clk 0:00:03.1]} 32.
Rc3 {[%clk 0:00:33.5]} 32... Nf7 {[%clk 0:00:02]} 33. Nxf7+ {[%clk 0:00:32.6]}
33... Rxf7 {[%clk 0:00:02.9]} 34. b5 {[%clk 0:00:30.6]} 34... Kg7 {[%clk
0:00:03]} 35. b6 {[%clk 0:00:30.1]} 35... Re7 {[%clk 0:00:03.2]} 36. Ra3 {[%clk
0:00:29.2]} 36... Kh6 {[%clk 0:00:02.6]} 37. Ra7 {[%clk 0:00:28.1]} 37... Re6
{[%clk 0:00:02.9]} 38. b7 {[%clk 0:00:27.7]} 38... Rb6 {[%clk 0:00:02.8]} 39. e5
{[%clk 0:00:19.9]} 39... Rb5 {[%clk 0:00:01.3]} 40. e6 {[%clk 0:00:08.9]} 40...
Re5 {[%clk 0:00:01.7]} 41. Qg2 {[%clk 0:00:04.2]} 41... Rxe6 {[%clk 0:00:01.9]}
42. Rb1 {[%clk 0:00:01.8]} 42... Re8 {[%clk 0:00:01.5]} 43. Ra8 {[%clk
0:00:01.3]} 43... Bb8 {[%clk 0:00:02.1]} 0-1